Workbook

Sheet 汇总表
A1: 2022年合肥市社会组织奖补情况一览表
A2: 单位：万元
A3: 序号 | B3: 区域 | C3: 奖补对象名称 | D3: 类别/等级 | E3: 市级 资金 | F3: 配套资金
B4: 市本级 | E4: 130.8
A5: 1 | B5: 市本级 | C5: 合肥市青少年心理研究会 | D5: 新登记公益慈善类、科技类、行业协会类、城乡社区服务类 | E5: 2
A6: 2 | B6: 市本级 | C6: 合肥市托育行业协会 | D6: 新登记公益慈善类、科技类、行业协会类、城乡社区服务类 | E6: 2
A7: 3 | B7: 市本级 | C7: 合肥市智能网联汽车创新中心 | D7: 新登记公益慈善类、科技类、行业协会类、城乡社区服务类 | E7: 2
A8: 4 | B8: 市本级 | C8: 合肥中科信息工程技工学校 | D8: 新登记公益慈善类、科技类、行业协会类、城乡社区服务类 | E8: 2
A9: 5 | B9: 市本级 | C9: 合肥行知技工学校 | D9: 新登记公益慈善类、科技类、行业协会类、城乡社区服务类 | E9: 2
A10: 6 | B10: 市本级 | C10: 合肥市易制毒化学品行业协会 | D10: 新登记公益慈善类、科技类、行业协会类、城乡社区服务类 | E10: 2
A11: 7 | B11: 市本级 | C11: 合肥市慈善总会 | D11: 5A | E11: 10.4
A12: 8 | B12: 市本级 | C12: 合肥市心理咨询师协会 | D12: 5A | E12: 10.4
A13: 9 | B13: 市本级 | C13: 合肥市服务贸易与服务外包行业协会 | D13: 5A | E13: 10.4
A14: 10 | B14: 市本级 | C14: 合肥市健康管理协会 | D14: 5A | E14: 10.4
A15: 11 | B15: 市本级 | C15: 合肥市社会工作联合会 | D15: 5A | E15: 10.4
A16: 12 | B16: 市本级 | C16: 合肥市春芽残疾人互助协会 | D16: 5A | E16: 10.4
A17: 13 | B17: 市本级 | C17: 合肥泉州商会 | D17: 5A | E17: 8
A18: 14 | B18: 市本级 | C18: 合肥市家政服务协会 | D18: 5A | E18: 10.4
A19: 15 | B19: 市本级 | C19: 合肥市建设工程造价协会 | D19: 5A | E19: 10.4
A20: 16 | B20: 市本级 | C20: 合肥市保险行业协会 | D20: 5A | E20: 10.4
A21: 17 | B21: 市本级 | C21: 合肥市铝材商会 | D21: 4A | E21: 4
A22: 18 | B22: 市本级 | C22: 合肥市工商联商（协）会秘书长协会 | D22: 4A | E22: 4
A23: 19 | B23: 市本级 | C23: 合肥市宣城商会 | D23: 4A | E23: 4
A24: 20 | B24: 市本级 | C24: 合肥宝业救助特困群体基金会 | D24: 3A | E24: 2.6
A25: 21 | B25: 市本级 | C25: 合肥市湿地保护协会 | D25: 3A | E25: 2.6
B26: 长丰县 | E26: =SUM(E27:E44) -> 59 | F26: =SUM(F27:F44) -> 10
A27: 1 | B27: 长丰县 | C27: 长丰双墩青苗荟和徽苑幼儿园 | D27: 4A | E27: 2 | F27: 2
A28: 2 | B28: 长丰县 | C28: 长丰岗集海贝丽景幼儿园 | D28: 4A | E28: 2 | F28: 2
A29: 3 | B29: 长丰县 | C29: 长丰双凤徐桥苑幼儿园 | D29: 4A | E29: 2 | F29: 2
A30: 4 | B30: 长丰县 | C30: 长丰北城明珠幼儿园 | D30: 3A | E30: 1 | F30: 1
A31: 5 | B31: 长丰县 | C31: 长丰双墩小博士幼儿园 | D31: 3A | E31: 1 | F31: 1
A32: 6 | B32: 长丰县 | C32: 长丰岗集蓝天幼儿园 | D32: 3A | E32: 1 | F32: 1
A33: 7 | B33: 长丰县 | C33: 长丰县庄墓镇刘浅社区社会组织联合会 | D33: 3A | E33: 1 | F33: 1
A34: 8 | B34: 长丰县 | C34: 长丰县基层公共服务领域公益创投项目（4个） | D34: 基层公共服务领域公益创投项目 | E34: 20
A35: 9 | B35: 长丰县 | C35: 长丰县吴山镇官府社区社会组织联合会 | D35: 百强联合会 | E35: 1
A36: 10 | B36: 长丰县 | C36: 长丰县吴山镇五十埠社区社会组织联合会 | D36: 百强联合会 | E36: 1
A37: 11 | B37: 长丰县 | C37: 长丰县杨庙镇云峰村社区社会组织联合会 | D37: 百强联合会 | E37: 1
A38: 12 | B38: 长丰县 | C38: 长丰县双墩镇泉河路社区社会组织联合会 | D38: 百强联合会 | E38: 1
A39: 13 | B39: 长丰县 | C39: 长丰县水湖镇锦湖社区社会组织联合会 | D39: 百强联合会 | E39: 1
A40: 14 | B40: 长丰县 | C40: 长丰县水湖镇富华社区社会组织联合会 | D40: 百强联合会 | E40: 1
A41: 15 | B41: 长丰县 | C41: 长丰县左店镇淮光村社会组织联合会 | D41: 百强联合会 | E41: 1
A42: 16 | B42: 长丰县 | C42: 长丰县庄墓镇刘浅社区社会组织联合会 | D42: 百强联合会 | E42: 1
A43: 17 | B43: 长丰县 | C43: 长丰县杨庙镇庙北居委会社会组织联合会 | D43: 百强联合会 | E43: 1
A44: 18 | B44: 长丰县 | C44: 岗集镇社区组织孵化园 | D44: 街道级社区社会组织孵化园 | E44: 20
B45: 肥东县 | E45: =SUM(E46:E75) -> 54.8 | F45: =SUM(F46:F75) -> 25.8
A46: 1 | B46: 肥东县 | C46: 肥东志成双语学校 | D46: 4A | E46: 2 | F46: 2
A47: 2 | B47: 肥东县 | C47: 安徽合肥医药卫生学校 | D47: 4A | E47: 2 | F47: 2
A48: 3 | B48: 肥东县 | C48: 肥东大孝援通智能化养老信息服务中心 | D48: 4A | E48: 2 | F48: 2
A49: 4 | B49: 肥东县 | C49: 肥东县作家协会 | D49: 4A | E49: 2 | F49: 2
A50: 5 | B50: 肥东县 | C50: 肥东碧桂园童乐幼儿园 | D50: 3A | E50: 1 | F50: 1
A51: 6 | B51: 肥东县 | C51: 肥东县笑童颜残疾人康复中心 | D51: 3A | E51: 1.3 | F51: 1.3
A52: 7 | B52: 肥东县 | C52: 肥东亲亲幼儿园•瑞士园 | D52: 3A | E52: 1 | F52: 1
A53: 8 | B53: 肥东县 | C53: 肥东县民族企业促进会 | D53: 3A | E53: 1 | F53: 1
A54: 9 | B54: 肥东县 | C54: 肥东县学成职业培训学校 | D54: 3A | E54: 1 | F54: 1
A55: 10 | B55: 肥东县 | C55: 肥东县店埠镇镇西社区社会组织联合会 | D55: 3A | E55: 1.3 | F55: 1.3
A56: 11 | B56: 肥东县 | C56: 肥东亲亲幼儿园 | D56: 3A | E56: 1 | F56: 1
A57: 12 | B57: 肥东县 | C57: 肥东县科新方大社会工作发展中心 | D57: 3A | E57: 1.3 | F57: 1.3
A58: 13 | B58: 肥东县 | C58: 肥东县牛门洪拳协会 | D58: 3A | E58: 1 | F58: 1
A59: 14 | B59: 肥东县 | C59: 肥东县迪伦职业培训学校 | D59: 3A | E59: 1 | F59: 1
A60: 15 | B60: 肥东县 | C60: 肥东县启航职业培训学校 | D60: 3A | E60: 1 | F60: 1
A61: 16 | B61: 肥东县 | C61: 肥东瑞景兰庭•童乐幼儿园 | D61: 3A | E61: 1 | F61: 1
A62: 17 | B62: 肥东县 | C62: 肥东县店埠镇青春社区社会组织联合会 | D62: 3A | E62: 1.3 | F62: 1.3
A63: 18 | B63: 肥东县 | C63: 肥东县宏爱社会工作发展中心 | D63: 3A | E63: 1.3 | F63: 1.3
A64: 19 | B64: 肥东县 | C64: 肥东县店埠镇排头社区社会组织联合会 | D64: 3A | E64: 1.3 | F64: 1.3
A65: 20 | B65: 肥东县 | C65: 肥东立志补习学校 | D65: 3A | E65: 1 | F65: 1
A66: 21 | B66: 肥东县 | C66: 肥东县店埠镇排头社区社会组织联合会 | D66: 百强联合会 | E66: 1
A67: 22 | B67: 肥东县 | C67: 肥东县店埠镇镇北社区社会组织联合会 | D67: 百强联合会 | E67: 1
A68: 23 | B68: 肥东县 | C68: 肥东县店埠镇中心社区社会组织联合会 | D68: 百强联合会 | E68: 1
A69: 24 | B69: 肥东县 | C69: 肥东县店埠镇花园社区社会组织联合会 | D69: 百强联合会 | E69: 1
A70: 25 | B70: 肥东县 | C70: 肥东县店埠镇青春社区社会组织联合会 | D70: 百强联合会 | E70: 1
A71: 26 | B71: 肥东县 | C71: 肥东县店埠镇光大社区社会组织联合会 | D71: 百强联合会 | E71: 1
A72: 27 | B72: 肥东县 | C72: 肥东县店埠镇镇西社区社会组织联合会 | D72: 百强联合会 | E72: 1
A73: 28 | B73: 肥东县 | C73: 肥东县店埠镇镇南社区社会组织联合会 | D73: 百强联合会 | E73: 1
A74: 29 | B74: 肥东县 | C74: 肥东县店埠镇唐杨社区社会组织联合会 | D74: 百强联合会 | E74: 1
A75: 30 | B75: 肥东县 | C75: 肥东县基层公共服务领域公益创投项目（4个） | D75: 基层公共服务领域公益创投项目 | E75: 20
B76: 肥西县 | E76: =SUM(E77:E106) -> 228.4 | F76: =SUM(F77:F106) -> 24.4
A77: 1 | B77: 肥西县 | C77: 肥西阳光爱心社 | D77: 4A | E77: 2.6 | F77: 2.6
A78: 2 | B78: 肥西县 | C78: 肥西县莲藕协会 | D78: 4A | E78: 2 | F78: 2
A79: 3 | B79: 肥西县 | C79: 肥西弘爱志愿者协会 | D79: 4A | E79: 2.6 | F79: 2.6
A80: 4 | B80: 肥西县 | C80: 肥西县瑜伽协会 | D80: 4A | E80: 2 | F80: 2
A81: 5 | B81: 肥西县 | C81: 肥西书香雅苑幼儿园 | D81: 4A | E81: 2 | F81: 2
A82: 6 | B82: 肥西县 | C82: 肥西县蚕桑技术协会 | D82: 4A | E82: 2 | F82: 2
A83: 7 | B83: 肥西县 | C83: 肥西新时代职业培训学校 | D83: 3A | E83: 1 | F83: 1
A84: 8 | B84: 肥西县 | C84: 肥西县庐淮社工师事务所 | D84: 3A | E84: 1.3 | F84: 1.3
A85: 9 | B85: 肥西县 | C85: 肥西县同为社工师事务所 | D85: 3A | E85: 1.3 | F85: 1.3
A86: 10 | B86: 肥西县 | C86: 肥西县花岗镇朝阳广场舞舞蹈队 | D86: 3A | E86: 1.3 | F86: 1.3
A87: 11 | B87: 肥西县 | C87: 肥西县桃花镇繁华新园社区庐文艺术团 | D87: 3A | E87: 1.3 | F87: 1.3
A88: 12 | B88: 肥西县 | C88: 肥西思锐职业培训学校 | D88: 3A | E88: 1 | F88: 1
A89: 13 | B89: 肥西县 | C89: 肥西县健身气功协会 | D89: 3A | E89: 1 | F89: 1
A90: 14 | B90: 肥西县 | C90: 肥西清华外国语培训学校 | D90: 3A | E90: 1 | F90: 1
A91: 15 | B91: 肥西县 | C91: 肥西县舞龙舞狮运动协会 | D91: 3A | E91: 1 | F91: 1
A92: 16 | B92: 肥西县 | C92: 肥西上派精英上园幼儿园 | D92: 3A | E92: 1 | F92: 1
A93: 17 | B93: 肥西县 | C93: 肥西县三河镇北街社区社会组织联合会 | D93: 百强联合会 | E93: 1
A94: 18 | B94: 肥西县 | C94: 肥西县三河镇东街社区社会组织联合会 | D94: 百强联合会 | E94: 1
A95: 19 | B95: 肥西县 | C95: 肥西县三河镇西街社区社会组织联合会 | D95: 百强联合会 | E95: 1
A96: 20 | B96: 肥西县 | C96: 肥西县三河镇杨婆社区社会组织联合会 | D96: 百强联合会 | E96: 1
A97: 21 | B97: 肥西县 | C97: 肥西县丰乐镇社会组织孵化园 | D97: 街道级社区社会组织孵化园 | E97: 20
A98: 22 | B98: 肥西县 | C98: 肥西县官亭镇社会组织孵化园 | D98: 街道级社区社会组织孵化园 | E98: 20
A99: 23 | B99: 肥西县 | C99: 肥西县桃花镇社会组织孵化园 | D99: 街道级社区社会组织孵化园 | E99: 20
A100: 24 | B100: 肥西县 | C100: 肥西县高店镇社会组织孵化园 | D100: 街道级社区社会组织孵化园 | E100: 20
A101: 25 | B101: 肥西县 | C101: 肥西县柏堰科技园社会组织孵化园 | D101: 街道级社区社会组织孵化园 | E101: 20
A102: 26 | B102: 肥西县 | C102: 肥西县经开区社会组织孵化园 | D102: 街道级社区社会组织孵化园 | E102: 20
A103: 27 | B103: 肥西县 | C103: 肥西县紫蓬山管委会社会组织孵化园 | D103: 街道级社区社会组织孵化园 | E103: 20
A104: 28 | B104: 肥西县 | C104: 肥西县铭传乡社会组织孵化园 | D104: 街道级社区社会组织孵化园 | E104: 20
A105: 29 | B105: 肥西县 | C105: 肥西县柿树岗乡社会组织孵化园 | D105: 街道级社区社会组织孵化园 | E105: 20
A106: 30 | B106: 肥西县 | C106: 肥西县基层公共服务领域公益创投项目（4个） | D106: 基层公共服务领域公益创投项目 | E106: 20
B107: 巢湖市 | E107: =SUM(E108:E124) -> 43.7 | F107: =SUM(F108:F124) -> 16.7
A108: 1 | B108: 巢湖市 | C108: 巢湖市爱巢社会工作服务社 | D108: 5A | E108: 5.2 | F108: 5.2
A109: 2 | B109: 巢湖市 | C109: 巢湖市亿信职业培训学校 | D109: 4A | E109: 2 | F109: 2
A110: 3 | B110: 巢湖市 | C110: 巢湖市彩虹社会工作服务中心 | D110: 4A | E110: 2.6 | F110: 2.6
A111: 4 | B111: 巢湖市 | C111: 巢湖市战鹰社会工作服务社 | D111: 3A | E111: 1.3 | F111: 1.3
A112: 5 | B112: 巢湖市 | C112: 巢湖市兰花协会 | D112: 3A | E112: 1 | F112: 1
A113: 6 | B113: 巢湖市 | C113: 巢湖市营养学会 | D113: 3A | E113: 1.3 | F113: 1.3
A114: 7 | B114: 巢湖市 | C114: 巢湖妇产医院 | D114: 3A | E114: 1 | F114: 1
A115: 8 | B115: 巢湖市 | C115: 巢湖市思想力社会工作服务中心 | D115: 3A | E115: 1.3 | F115: 1.3
A116: 9 | B116: 巢湖市 | C116: 巢湖市白玉兰志愿者服务队 | D116: 新登记公益慈善类、科技类、行业协会类、城乡社区服务类 | E116: 1 | F116: 1
A117: 10 | B117: 巢湖市 | C117: 巢湖市卧牛山街道北大街社区社会组织联合会 | D117: 百强联合会 | E117: 1
A118: 11 | B118: 巢湖市 | C118: 巢湖市凤凰山街道黎明社区社会组织联合会 | D118: 百强联合会 | E118: 1
A119: 12 | B119: 巢湖市 | C119: 巢湖市天河街道官圩社区社会组织联合会 | D119: 百强联合会 | E119: 1
A120: 13 | B120: 巢湖市 | C120: 巢湖市亚父街道裕溪河畔社区社会组织联合会 | D120: 百强联合会 | E120: 1
A121: 14 | B121: 巢湖市 | C121: 巢湖市亚父街道朝阳门社区社会组织联合会 | D121: 百强联合会 | E121: 1
A122: 15 | B122: 巢湖市 | C122: 巢湖市亚父街道洗耳池社区社会组织联合会 | D122: 百强联合会 | E122: 1
A123: 16 | B123: 巢湖市 | C123: 巢湖市亚父街道义城社区社会组织联合会 | D123: 百强联合会 | E123: 1
A124: 17 | B124: 巢湖市 | C124: 巢湖市基层公共服务领域公益创投项目（4个） | D124: 基层公共服务领域公益创投项目 | E124: 20
B125: 庐江县 | E125: =SUM(E126:E143) -> 40.7 | F125: =SUM(F126:F143) -> 14.7
A126: 1 | B126: 庐江县 | C126: 庐江县慈善协会 | D126: 4A | E126: 2.6 | F126: 2.6
A127: 2 | B127: 庐江县 | C127: 庐江县彩虹社会工作服务中心 | D127: 3A | E127: 1.3 | F127: 1.3
A128: 3 | B128: 庐江县 | C128: 庐江粮食行业协会 | D128: 3A | E128: 1.3 | F128: 1.3
A129: 4 | B129: 庐江县 | C129: 庐江县彩虹社会工作服务中心 | D129: 新引进备案专业社会组织 | E129: 2.5 | F129: 2.5
A130: 5 | B130: 庐江县 | C130: 庐江爱心车队 | D130: 新登记公益慈善类、科技类、行业协会类、城乡社区服务类 | E130: 1 | F130: 1
A131: 6 | B131: 庐江县 | C131: 庐江县龙桥镇志愿服务联合会 | D131: 新登记公益慈善类、科技类、行业协会类、城乡社区服务类 | E131: 1 | F131: 1
A132: 7 | B132: 庐江县 | C132: 庐江县壹点爱志愿团 | D132: 新登记公益慈善类、科技类、行业协会类、城乡社区服务类 | E132: 1 | F132: 1
A133: 8 | B133: 庐江县 | C133: 庐江县文艺志愿者协会 | D133: 新登记公益慈善类、科技类、行业协会类、城乡社区服务类 | E133: 1 | F133: 1
A134: 9 | B134: 庐江县 | C134: 庐江县文化志愿服务中心 | D134: 新登记公益慈善类、科技类、行业协会类、城乡社区服务类 | E134: 1 | F134: 1
A135: 10 | B135: 庐江县 | C135: 庐江县向日葵社会工作服务中心 | D135: 新登记公益慈善类、科技类、行业协会类、城乡社区服务类 | E135: 1 | F135: 1
A136: 11 | B136: 庐江县 | C136: 庐江县天翊社会工作服务中心 | D136: 新登记公益慈善类、科技类、行业协会类、城乡社区服务类 | E136: 1 | F136: 1
A137: 12 | B137: 庐江县 | C137: 庐江县庐城镇鲍井社区社会组织联合会 | D137: 百强联合会 | E137: 1
A138: 13 | B138: 庐江县 | C138: 庐江县庐城镇岗湾社区社会组织联合会 | D138: 百强联合会 | E138: 1
A139: 14 | B139: 庐江县 | C139: 庐江县庐城镇绣溪社区社会组织联合会 | D139: 百强联合会 | E139: 1
A140: 15 | B140: 庐江县 | C140: 庐江县庐城镇三里社区社会组织联合会 | D140: 百强联合会 | E140: 1
A141: 16 | B141: 庐江县 | C141: 庐江县庐城镇磙塘社区社会组织联合会 | D141: 百强联合会 | E141: 1
A142: 17 | B142: 庐江县 | C142: 庐江县庐城镇晨光社区社会组织联合会 | D142: 百强联合会 | E142: 1
A143: 18 | B143: 庐江县 | C143: 庐江县基层公共服务领域公益创投项目（4个） | D143: 基层公共服务领域公益创投项目 | E143: 20
B144: 庐阳区 | E144: =SUM(E145:E161) -> 85.8 | F144: =SUM(F145:F161) -> 11.8
A145: 1 | B145: 庐阳区 | C145: 合肥市方圆社会工作事务所 | D145: 5A | E145: 5.2 | F145: 5.2
A146: 2 | B146: 庐阳区 | C146: 合肥市乐清商会 | D146: 4A | E146: 2 | F146: 2
A147: 3 | B147: 庐阳区 | C147: 合肥市明德评估指导中心 | D147: 4A | E147: 2 | F147: 2
A148: 4 | B148: 庐阳区 | C148: 合肥市庐阳区为民社会工作服务中心 | D148: 3A | E148: 1.3 | F148: 1.3
A149: 5 | B149: 庐阳区 | C149: 合肥市庐阳区福寿之家关怀服务中心 | D149: 3A | E149: 1.3 | F149: 1.3
A150: 6 | B150: 庐阳区 | C150: 庐阳区亳州路街道社区社会组织孵化园 | D150: 街道级社区社会组织孵化园 | E150: 20
A151: 7 | B151: 庐阳区 | C151: 庐阳区双岗街道社区社会组织孵化园 | D151: 街道级社区社会组织孵化园 | E151: 20
A152: 8 | B152: 庐阳区 | C152: 庐阳区逍遥津街道拱辰社区社会组织联合会 | D152: 百强联合会 | E152: 1
A153: 9 | B153: 庐阳区 | C153: 庐阳区逍遥津街道义仓社区社会组织联合会 | D153: 百强联合会 | E153: 1
A154: 10 | B154: 庐阳区 | C154: 庐阳区三孝口街道大夫第社区社会组织联合会 | D154: 百强联合会 | E154: 1
A155: 11 | B155: 庐阳区 | C155: 庐阳区亳州路街道畅园社区社会组织联合会 | D155: 百强联合会 | E155: 1
A156: 12 | B156: 庐阳区 | C156: 庐阳区海棠街道建华社区社会组织联合会 | D156: 百强联合会 | E156: 1
A157: 13 | B157: 庐阳区 | C157: 庐阳区亳州路街道古城社区社会组织联合会 | D157: 百强联合会 | E157: 1
A158: 14 | B158: 庐阳区 | C158: 双岗街道万小店社区社会组织联合会 | D158: 百强联合会 | E158: 1
A159: 15 | B159: 庐阳区 | C159: 庐阳区大杨镇草塘社区社会组织联合会 | D159: 百强联合会 | E159: 1
A160: 16 | B160: 庐阳区 | C160: 庐阳区杏林街道丽都社区社会组织联合会 | D160: 百强联合会 | E160: 1
A161: 17 | B161: 庐阳区 | C161: 庐阳区基层公共服务领域公益创投项目（5个） | D161: 基层公共服务领域公益创投项目 | E161: 25
B162: 蜀山区 | E162: =SUM(E163:E190) -> 111.7 | F162: =SUM(F163:F190) -> 17.7
A163: 1 | B163: 蜀山区 | C163: 合肥市蜀山区君善公益服务中心 | D163: 5A | E163: 5.2 | F163: 5.2
A164: 2 | B164: 蜀山区 | C164: 蜀山经济开发区汽车行业协会 | D164: 4A | E164: 2.6 | F164: 2.6
A165: 3 | B165: 蜀山区 | C165: 合肥市蜀山区篮球运动协会 | D165: 4A | E165: 2 | F165: 2
A166: 4 | B166: 蜀山区 | C166: 合肥市蜀山区天天向上残障儿童康复中心 | D166: 3A | E166: 1.3 | F166: 1.3
A167: 5 | B167: 蜀山区 | C167: 合肥蜀山经济开发区社会组织联合会 | D167: 3A | E167: 1.3 | F167: 1.3
A168: 6 | B168: 蜀山区 | C168: 京狮青阳路幼儿园 | D168: 3A | E168: 1 | F168: 1
A169: 7 | B169: 蜀山区 | C169: 合肥八一驾驶员培训学校 | D169: 3A | E169: 1 | F169: 1
A170: 8 | B170: 蜀山区 | C170: 合肥市蜀山区西园街道社会组织联合会 | D170: 3A | E170: 1.3 | F170: 1.3
A171: 9 | B171: 蜀山区 | C171: 合肥市蜀山区香山社会工作服务中心 | D171: 新登记公益慈善类、科技类、行业协会类、城乡社区服务类 | E171: 1 | F171: 1
A172: 10 | B172: 蜀山区 | C172: 合肥市蜀山区晨希社会工作服务中心 | D172: 新登记公益慈善类、科技类、行业协会类、城乡社区服务类 | E172: 1 | F172: 1
A173: 11 | B173: 蜀山区 | C173: 合肥市蜀山区经济技术开发区孵化园 | D173: 街道级社区社会组织孵化园 | E173: 20
A174: 12 | B174: 蜀山区 | C174: 合肥市蜀山区琥珀街道翠竹园社区孵化园 | D174: 街道级社区社会组织孵化园 | E174: 20
A175: 13 | B175: 蜀山区 | C175: 合肥市蜀山区五里墩街道孵化园 | D175: 街道级社区社会组织孵化园 | E175: 20
A176: 14 | B176: 蜀山区 | C176: 蜀山区稻香村街道望江西路社区社会组织联合会 | D176: 百强联合会 | E176: 1
A177: 15 | B177: 蜀山区 | C177: 蜀山区笔架山街道翠庭园社区社会组织联合会 | D177: 百强联合会 | E177: 1
A178: 16 | B178: 蜀山区 | C178: 蜀山区南七街道科企社区社会组织联合会 | D178: 百强联合会 | E178: 1
A179: 17 | B179: 蜀山区 | C179: 蜀山区西园街道汉嘉社区社会组织联合会 | D179: 百强联合会 | E179: 1
A180: 18 | B180: 蜀山区 | C180: 蜀山区西园街道光明社区社会组织联合会 | D180: 百强联合会 | E180: 1
A181: 19 | B181: 蜀山区 | C181: 蜀山区西园街道安居苑社区社会组织联合会 | D181: 百强联合会 | E181: 1
A182: 20 | B182: 蜀山区 | C182: 蜀山区三里庵街道梅山路社区社会组织联合会 | D182: 百强联合会 | E182: 1
A183: 21 | B183: 蜀山区 | C183: 蜀山区五里墩街道家家景园村社区社会组织联合会 | D183: 百强联合会 | E183: 1
A184: 22 | B184: 蜀山区 | C184: 蜀山区稻香村街道黄山路社区社会组织联合会 | D184: 百强联合会 | E184: 1
A185: 23 | B185: 蜀山区 | C185: 蜀山区西园街道七里塘社区社会组织联合会 | D185: 百强联合会 | E185: 1
A186: 24 | B186: 蜀山区 | C186: 蜀山区五里墩街道团安村社区社会组织联合会 | D186: 百强联合会 | E186: 1
A187: 25 | B187: 蜀山区 | C187: 蜀山区西园街道美虹社区社会组织联合会 | D187: 百强联合会 | E187: 1
A188: 26 | B188: 蜀山区 | C188: 蜀山区稻香村街道合作化南路社区社会组织联合会 | D188: 百强联合会 | E188: 1
A189: 27 | B189: 蜀山区 | C189: 蜀山区南七街道新华社区社会组织联合会 | D189: 百强联合会 | E189: 1
A190: 28 | B190: 蜀山区 | C190: 蜀山区基层公共服务领域公益创投项目（4个） | D190: 基层公共服务领域公益创投项目 | E190: 20
B191: 包河区 | E191: =SUM(E192:E230) -> 139.4 | F191: =SUM(F192:F230) -> 14.4
A192: 1 | B192: 包河区 | C192: 合肥市包河区社会组织服务中心 | D192: 5A | E192: 5.2 | F192: 5.2
A193: 2 | B193: 包河区 | C193: 合肥市包河区社区治理学院 | D193: 3A | E193: 1.3 | F193: 1.3
A194: 3 | B194: 包河区 | C194: 合肥市包河区惠灵社会工作服务中心 | D194: 3A | E194: 1.3 | F194: 1.3
A195: 4 | B195: 包河区 | C195: 合肥市包河区蓝莲花志愿服务中心 | D195: 3A | E195: 1.3 | F195: 1.3
A196: 5 | B196: 包河区 | C196: 合肥市包河区烟墩街道西杭社区社会组织联合会 | D196: 3A | E196: 1.3 | F196: 1.3
A197: 6 | B197: 包河区 | C197: 合肥市包河区福康通养老服务中心 | D197: 新登记公益慈善类、科技类、行业协会类、城乡社区服务类 | E197: 1 | F197: 1
A198: 7 | B198: 包河区 | C198: 合肥市包河区方兴社区志愿服务联合会 | D198: 新登记公益慈善类、科技类、行业协会类、城乡社区服务类 | E198: 1 | F198: 1
A199: 8 | B199: 包河区 | C199: 合肥市包河区益欣社会工作服务中心 | D199: 新登记公益慈善类、科技类、行业协会类、城乡社区服务类 | E199: 1 | F199: 1
A200: 9 | B200: 包河区 | C200: 合肥市包河区爱家社会服务中心 | D200: 新登记公益慈善类、科技类、行业协会类、城乡社区服务类 | E200: 1 | F200: 1
... 83 more rows
